Workbook

Sheet 入围体检名单
A1: 附件1： 2023年蓬江区中小学教师招聘本地专场入围体检人员名单
A2: 序号 | B2: 岗位代码 | C2: 本地专场准考证号 | D2: 笔试或技能测试成绩 | E2: 面试成绩 | F2: 综合成绩 | G2: 是否入围体检
A3: 1 | B3: 20232001 | C3: 50231136 | D3: 74.300 | E3: =VLOOKUP(C3,[1]本地专场面试成绩!$D$2:$F$474,3,0) -> 83.800 | F3: =D3*0.3+E3*0.7 -> 80.950 | G3: 是
A4: 2 | B4: 20232001 | C4: 50230664 | D4: 66.450 | E4: =VLOOKUP(C4,[1]本地专场面试成绩!$D$2:$F$474,3,0) -> 86.200 | F4: 80.275 | G4: 是
A5: 3 | B5: 20232001 | C5: 50230357 | D5: 71.200 | E5: =VLOOKUP(C5,[1]本地专场面试成绩!$D$2:$F$474,3,0) -> 82.400 | F5: 79.040 | G5: 是
A6: 4 | B6: 20232001 | C6: 50232865 | D6: 66.250 | E6: =VLOOKUP(C6,[1]本地专场面试成绩!$D$2:$F$474,3,0) -> 83.200 | F6: 78.115 | G6: 是
A7: 5 | B7: 20232001 | C7: 50230969 | D7: 69.500 | E7: =VLOOKUP(C7,[1]本地专场面试成绩!$D$2:$F$474,3,0) -> 81.400 | F7: 77.830 | G7: 是
A8: 6 | B8: 20232001 | C8: 50232686 | D8: 59.900 | E8: =VLOOKUP(C8,[1]本地专场面试成绩!$D$2:$F$474,3,0) -> 84.400 | F8: 77.050 | G8: 是
A9: 7 | B9: 20232001 | C9: 50233068 | D9: 65.800 | E9: =VLOOKUP(C9,[1]本地专场面试成绩!$D$2:$F$474,3,0) -> 81.600 | F9: 76.860 | G9: 是
A10: 8 | B10: 20232001 | C10: 50232960 | D10: 61.000 | E10: =VLOOKUP(C10,[1]本地专场面试成绩!$D$2:$F$474,3,0) -> 81.400 | F10: 75.280 | G10: 是
A11: 9 | B11: 20232001 | C11: 50231975 | D11: 68.000 | E11: =VLOOKUP(C11,[1]本地专场面试成绩!$D$2:$F$474,3,0) -> 77.200 | F11: 74.440 | G11: 是
A12: 10 | B12: 20232001 | C12: 50231137 | D12: 64.250 | E12: =VLOOKUP(C12,[1]本地专场面试成绩!$D$2:$F$474,3,0) -> 78.800 | F12: 74.435 | G12: 是
A13: 11 | B13: 20232002 | C13: 50230640 | D13: 68.600 | E13: 86.200 | F13: 80.920 | G13: 是
A14: 12 | B14: 20232002 | C14: 50230261 | D14: 68.250 | E14: 85.000 | F14: 79.975 | G14: 是
A15: 13 | B15: 20232002 | C15: 50230977 | D15: 60.950 | E15: 87.600 | F15: 79.605 | G15: 是
A16: 14 | B16: 20232002 | C16: 50231249 | D16: 65.900 | E16: 85.400 | F16: 79.550 | G16: 是
A17: 15 | B17: 20232002 | C17: 50230829 | D17: 74.000 | E17: 81.400 | F17: 79.180 | G17: 是
A18: 16 | B18: 20232002 | C18: 50233051 | D18: 69.250 | E18: 83.400 | F18: 79.155 | G18: 是
A19: 17 | B19: 20232002 | C19: 50231873 | D19: 64.150 | E19: 85.400 | F19: 79.025 | G19: 是
A20: 18 | B20: 20232002 | C20: 50232296 | D20: 67.150 | E20: 82.000 | F20: 77.545 | G20: 是
A21: 19 | B21: 20232002 | C21: 50232691 | D21: 70.750 | E21: 80.200 | F21: 77.365 | G21: 是
A22: 20 | B22: 20232002 | C22: 50231890 | D22: 61.900 | E22: 83.600 | F22: 77.090 | G22: 是
A23: 21 | B23: 20232003 | C23: 50230251 | D23: 77.700 | E23: =VLOOKUP(C23,[1]本地专场面试成绩!$D$2:$F$474,3,0) -> 85.000 | F23: =D23*0.3+E23*0.7 -> 82.810 | G23: 是
A24: 22 | B24: 20232003 | C24: 50230103 | D24: 70.550 | E24: =VLOOKUP(C24,[1]本地专场面试成绩!$D$2:$F$474,3,0) -> 87.800 | F24: 82.625 | G24: 是
A25: 23 | B25: 20232003 | C25: 50230090 | D25: 76.250 | E25: =VLOOKUP(C25,[1]本地专场面试成绩!$D$2:$F$474,3,0) -> 85.200 | F25: 82.515 | G25: 是
A26: 24 | B26: 20232003 | C26: 50230322 | D26: 61.250 | E26: =VLOOKUP(C26,[1]本地专场面试成绩!$D$2:$F$474,3,0) -> 87.600 | F26: 79.695 | G26: 是
A27: 25 | B27: 20232003 | C27: 50230645 | D27: 70.200 | E27: =VLOOKUP(C27,[1]本地专场面试成绩!$D$2:$F$474,3,0) -> 82.800 | F27: 79.020 | G27: 是
A28: 26 | B28: 20232003 | C28: 50230642 | D28: 63.650 | E28: =VLOOKUP(C28,[1]本地专场面试成绩!$D$2:$F$474,3,0) -> 85.600 | F28: 79.015 | G28: 是
A29: 27 | B29: 20232003 | C29: 50230894 | D29: 67.350 | E29: =VLOOKUP(C29,[1]本地专场面试成绩!$D$2:$F$474,3,0) -> 83.000 | F29: 78.305 | G29: 是
A30: 28 | B30: 20232003 | C30: 50233320 | D30: 63.200 | E30: =VLOOKUP(C30,[1]本地专场面试成绩!$D$2:$F$474,3,0) -> 84.400 | F30: 78.040 | G30: 是
A31: 29 | B31: 20232003 | C31: 50230376 | D31: 61.450 | E31: =VLOOKUP(C31,[1]本地专场面试成绩!$D$2:$F$474,3,0) -> 85.000 | F31: 77.935 | G31: 是
A32: 30 | B32: 20232003 | C32: 50233064 | D32: 68.750 | E32: =VLOOKUP(C32,[1]本地专场面试成绩!$D$2:$F$474,3,0) -> 81.600 | F32: 77.745 | G32: 是
A33: 31 | B33: 20232004 | C33: 50230840 | D33: 65.850 | E33: =VLOOKUP(C33,[1]本地专场面试成绩!$D$2:$F$474,3,0) -> 91.000 | F33: 83.455 | G33: 是
A34: 32 | B34: 20232004 | C34: 50232938 | D34: 73.700 | E34: =VLOOKUP(C34,[1]本地专场面试成绩!$D$2:$F$474,3,0) -> 85.200 | F34: 81.750 | G34: 是
A35: 33 | B35: 20232004 | C35: 50232098 | D35: 73.100 | E35: =VLOOKUP(C35,[1]本地专场面试成绩!$D$2:$F$474,3,0) -> 84.800 | F35: 81.290 | G35: 是
A36: 34 | B36: 20232004 | C36: 50231078 | D36: 66.550 | E36: =VLOOKUP(C36,[1]本地专场面试成绩!$D$2:$F$474,3,0) -> 86.200 | F36: 80.305 | G36: 是
A37: 35 | B37: 20232004 | C37: 50232108 | D37: 66.350 | E37: =VLOOKUP(C37,[1]本地专场面试成绩!$D$2:$F$474,3,0) -> 86.200 | F37: 80.245 | G37: 是
A38: 36 | B38: 20232004 | C38: 50233160 | D38: 67.550 | E38: =VLOOKUP(C38,[1]本地专场面试成绩!$D$2:$F$474,3,0) -> 85.600 | F38: 80.185 | G38: 是
A39: 37 | B39: 20232004 | C39: 50232874 | D39: 73.350 | E39: =VLOOKUP(C39,[1]本地专场面试成绩!$D$2:$F$474,3,0) -> 82.000 | F39: 79.405 | G39: 是
A40: 38 | B40: 20232004 | C40: 50232127 | D40: 61.800 | E40: =VLOOKUP(C40,[1]本地专场面试成绩!$D$2:$F$474,3,0) -> 86.000 | F40: 78.740 | G40: 是
A41: 39 | B41: 20232004 | C41: 50231449 | D41: 61.100 | E41: =VLOOKUP(C41,[1]本地专场面试成绩!$D$2:$F$474,3,0) -> 86.000 | F41: 78.530 | G41: 是
A42: 40 | B42: 20232004 | C42: 50232451 | D42: 66.550 | E42: =VLOOKUP(C42,[1]本地专场面试成绩!$D$2:$F$474,3,0) -> 83.600 | F42: 78.485 | G42: 是
A43: 41 | B43: 20232005 | C43: 50231815 | D43: 67.950 | E43: =VLOOKUP(C43,[1]本地专场面试成绩!$D$2:$F$474,3,0) -> 86.400 | F43: 80.865 | G43: 是
A44: 42 | B44: 20232005 | C44: 50231700 | D44: 72.400 | E44: =VLOOKUP(C44,[1]本地专场面试成绩!$D$2:$F$474,3,0) -> 82.600 | F44: 79.540 | G44: 是
A45: 43 | B45: 20232005 | C45: 50232427 | D45: 63.350 | E45: =VLOOKUP(C45,[1]本地专场面试成绩!$D$2:$F$474,3,0) -> 86.200 | F45: 79.345 | G45: 是
A46: 44 | B46: 20232005 | C46: 50232394 | D46: 66.650 | E46: =VLOOKUP(C46,[1]本地专场面试成绩!$D$2:$F$474,3,0) -> 84.200 | F46: 78.935 | G46: 是
A47: 45 | B47: 20232005 | C47: 50232383 | D47: 67.600 | E47: =VLOOKUP(C47,[1]本地专场面试成绩!$D$2:$F$474,3,0) -> 82.000 | F47: 77.680 | G47: 是
A48: 46 | B48: 20232005 | C48: 50230777 | D48: 63.250 | E48: =VLOOKUP(C48,[1]本地专场面试成绩!$D$2:$F$474,3,0) -> 83.600 | F48: 77.495 | G48: 是
A49: 47 | B49: 20232005 | C49: 50231918 | D49: 68.600 | E49: =VLOOKUP(C49,[1]本地专场面试成绩!$D$2:$F$474,3,0) -> 79.400 | F49: 76.160 | G49: 是
A50: 48 | B50: 20232005 | C50: 50233027 | D50: 51.800 | E50: =VLOOKUP(C50,[1]本地专场面试成绩!$D$2:$F$474,3,0) -> 85.600 | F50: 75.460 | G50: 是
A51: 49 | B51: 20232005 | C51: 50230209 | D51: 73.150 | E51: =VLOOKUP(C51,[1]本地专场面试成绩!$D$2:$F$474,3,0) -> 75.000 | F51: 74.445 | G51: 是
A52: 50 | B52: 20232005 | C52: 50231247 | D52: 53.500 | E52: =VLOOKUP(C52,[1]本地专场面试成绩!$D$2:$F$474,3,0) -> 82.600 | F52: 73.870 | G52: 是
A53: 51 | B53: 20232006 | C53: 50231049 | D53: 68.200 | E53: =VLOOKUP(C53,[1]本地专场面试成绩!$D$2:$F$474,3,0) -> 87.400 | F53: 81.640 | G53: 是
A54: 52 | B54: 20232006 | C54: 50231344 | D54: 61.950 | E54: =VLOOKUP(C54,[1]本地专场面试成绩!$D$2:$F$474,3,0) -> 87.000 | F54: 79.485 | G54: 是
A55: 53 | B55: 20232006 | C55: 50230554 | D55: 64.550 | E55: =VLOOKUP(C55,[1]本地专场面试成绩!$D$2:$F$474,3,0) -> 85.400 | F55: 79.145 | G55: 是
A56: 54 | B56: 20232006 | C56: 50233046 | D56: 71.250 | E56: =VLOOKUP(C56,[1]本地专场面试成绩!$D$2:$F$474,3,0) -> 80.000 | F56: 77.375 | G56: 是
A57: 55 | B57: 20232006 | C57: 50232328 | D57: 62.100 | E57: =VLOOKUP(C57,[1]本地专场面试成绩!$D$2:$F$474,3,0) -> 82.600 | F57: 76.450 | G57: 是
A58: 56 | B58: 20232006 | C58: 50230385 | D58: 62.550 | E58: =VLOOKUP(C58,[1]本地专场面试成绩!$D$2:$F$474,3,0) -> 82.200 | F58: 76.305 | G58: 是
A59: 57 | B59: 20232006 | C59: 50230372 | D59: 69.700 | E59: =VLOOKUP(C59,[1]本地专场面试成绩!$D$2:$F$474,3,0) -> 77.800 | F59: 75.370 | G59: 是
A60: 58 | B60: 20232006 | C60: 50232624 | D60: 62.550 | E60: =VLOOKUP(C60,[1]本地专场面试成绩!$D$2:$F$474,3,0) -> 80.200 | F60: 74.905 | G60: 是
A61: 59 | B61: 20232006 | C61: 50230849 | D61: 53.650 | E61: =VLOOKUP(C61,[1]本地专场面试成绩!$D$2:$F$474,3,0) -> 83.800 | F61: 74.755 | G61: 是
A62: 60 | B62: 20232006 | C62: 50230346 | D62: 67.250 | E62: =VLOOKUP(C62,[1]本地专场面试成绩!$D$2:$F$474,3,0) -> 77.800 | F62: 74.635 | G62: 是
A63: 61 | B63: 20232007 | C63: 50230937 | D63: 67.450 | E63: =VLOOKUP(C63,[1]本地专场面试成绩!$D$2:$F$474,3,0) -> 86.800 | F63: 80.995 | G63: 是
A64: 62 | B64: 20232007 | C64: 50231358 | D64: 71.700 | E64: =VLOOKUP(C64,[1]本地专场面试成绩!$D$2:$F$474,3,0) -> 83.800 | F64: 80.170 | G64: 是
A65: 63 | B65: 20232007 | C65: 50230175 | D65: 68.850 | E65: =VLOOKUP(C65,[1]本地专场面试成绩!$D$2:$F$474,3,0) -> 83.000 | F65: 78.755 | G65: 是
A66: 64 | B66: 20232007 | C66: 50230388 | D66: 60.900 | E66: =VLOOKUP(C66,[1]本地专场面试成绩!$D$2:$F$474,3,0) -> 84.600 | F66: 77.490 | G66: 是
A67: 65 | B67: 20232007 | C67: 50232011 | D67: 60.700 | E67: =VLOOKUP(C67,[1]本地专场面试成绩!$D$2:$F$474,3,0) -> 84.200 | F67: 77.150 | G67: 是
A68: 66 | B68: 20232007 | C68: 50230821 | D68: 60.350 | E68: =VLOOKUP(C68,[1]本地专场面试成绩!$D$2:$F$474,3,0) -> 83.400 | F68: 76.485 | G68: 是
A69: 67 | B69: 20232007 | C69: 50232325 | D69: 63.100 | E69: =VLOOKUP(C69,[1]本地专场面试成绩!$D$2:$F$474,3,0) -> 82.200 | F69: 76.470 | G69: 是
A70: 68 | B70: 20232007 | C70: 50232181 | D70: 58.200 | E70: =VLOOKUP(C70,[1]本地专场面试成绩!$D$2:$F$474,3,0) -> 83.600 | F70: 75.980 | G70: 是
A71: 69 | B71: 20232007 | C71: 50232327 | D71: 54.650 | E71: =VLOOKUP(C71,[1]本地专场面试成绩!$D$2:$F$474,3,0) -> 85.000 | F71: 75.895 | G71: 是
A72: 70 | B72: 20232007 | C72: 50230983 | D72: 60.600 | E72: =VLOOKUP(C72,[1]本地专场面试成绩!$D$2:$F$474,3,0) -> 82.400 | F72: 75.860 | G72: 是
A73: 71 | B73: 20232008 | C73: 50232660 | D73: 77.450 | E73: =VLOOKUP(C73,[1]本地专场面试成绩!$D$2:$F$474,3,0) -> 84.000 | F73: 82.035 | G73: 是
A74: 72 | B74: 20232008 | C74: 50230231 | D74: 68.600 | E74: =VLOOKUP(C74,[1]本地专场面试成绩!$D$2:$F$474,3,0) -> 86.600 | F74: 81.200 | G74: 是
A75: 73 | B75: 20232008 | C75: 50231563 | D75: 73.100 | E75: =VLOOKUP(C75,[1]本地专场面试成绩!$D$2:$F$474,3,0) -> 84.600 | F75: 81.150 | G75: 是
A76: 74 | B76: 20232008 | C76: 50232330 | D76: 74.850 | E76: =VLOOKUP(C76,[1]本地专场面试成绩!$D$2:$F$474,3,0) -> 83.400 | F76: 80.835 | G76: 是
A77: 75 | B77: 20232008 | C77: 50230776 | D77: 68.650 | E77: =VLOOKUP(C77,[1]本地专场面试成绩!$D$2:$F$474,3,0) -> 85.400 | F77: 80.375 | G77: 是
A78: 76 | B78: 20232008 | C78: 50230666 | D78: 70.700 | E78: =VLOOKUP(C78,[1]本地专场面试成绩!$D$2:$F$474,3,0) -> 84.300 | F78: 80.220 | G78: 是
A79: 77 | B79: 20232008 | C79: 50233026 | D79: 69.500 | E79: =VLOOKUP(C79,[1]本地专场面试成绩!$D$2:$F$474,3,0) -> 84.500 | F79: 80.000 | G79: 是
A80: 78 | B80: 20232008 | C80: 50232748 | D80: 70.900 | E80: =VLOOKUP(C80,[1]本地专场面试成绩!$D$2:$F$474,3,0) -> 83.600 | F80: 79.790 | G80: 是
A81: 79 | B81: 20232008 | C81: 50230495 | D81: 72.500 | E81: =VLOOKUP(C81,[1]本地专场面试成绩!$D$2:$F$474,3,0) -> 82.200 | F81: 79.290 | G81: 是
A82: 80 | B82: 20232008 | C82: 50232872 | D82: 68.450 | E82: =VLOOKUP(C82,[1]本地专场面试成绩!$D$2:$F$474,3,0) -> 83.900 | F82: 79.265 | G82: 是
A83: 81 | B83: 20232008 | C83: 50230863 | D83: 68.550 | E83: =VLOOKUP(C83,[1]本地专场面试成绩!$D$2:$F$474,3,0) -> 83.700 | F83: 79.155 | G83: 是
A84: 82 | B84: 20232009 | C84: 50232729 | D84: 64.450 | E84: =VLOOKUP(C84,[1]本地专场面试成绩!$D$2:$F$474,3,0) -> 87.200 | F84: 80.375 | G84: 是
A85: 83 | B85: 20232009 | C85: 50232349 | D85: 66.400 | E85: =VLOOKUP(C85,[1]本地专场面试成绩!$D$2:$F$474,3,0) -> 84.200 | F85: 78.860 | G85: 是
A86: 84 | B86: 20232009 | C86: 50230884 | D86: 66.600 | E86: =VLOOKUP(C86,[1]本地专场面试成绩!$D$2:$F$474,3,0) -> 83.400 | F86: 78.360 | G86: 是
A87: 85 | B87: 20232009 | C87: 50230262 | D87: 68.100 | E87: =VLOOKUP(C87,[1]本地专场面试成绩!$D$2:$F$474,3,0) -> 81.400 | F87: =D87*0.3+E87*0.7 -> 77.410 | G87: 是
A88: 86 | B88: 20232009 | C88: 50232261 | D88: 67.850 | E88: =VLOOKUP(C88,[1]本地专场面试成绩!$D$2:$F$474,3,0) -> 80.200 | F88: 76.495 | G88: 是
A89: 87 | B89: 20232009 | C89: 50230932 | D89: 62.000 | E89: =VLOOKUP(C89,[1]本地专场面试成绩!$D$2:$F$474,3,0) -> 80.200 | F89: 74.740 | G89: 是
A90: 88 | B90: 20232010 | C90: 50232422 | D90: 71.700 | E90: =VLOOKUP(C90,[1]本地专场面试成绩!$D$2:$F$474,3,0) -> 84.400 | F90: 80.590 | G90: 是
A91: 89 | B91: 20232010 | C91: 50231320 | D91: 69.650 | E91: =VLOOKUP(C91,[1]本地专场面试成绩!$D$2:$F$474,3,0) -> 85.000 | F91: 80.395 | G91: 是
A92: 90 | B92: 20232011 | C92: 50233266 | D92: 75.850 | E92: =VLOOKUP(C92,[1]本地专场面试成绩!$D$2:$F$474,3,0) -> 84.200 | F92: 81.695 | G92: 是
A93: 91 | B93: 20232011 | C93: 50230999 | D93: 68.400 | E93: =VLOOKUP(C93,[1]本地专场面试成绩!$D$2:$F$474,3,0) -> 86.200 | F93: 80.860 | G93: 是
A94: 92 | B94: 20232011 | C94: 50231571 | D94: 74.500 | E94: =VLOOKUP(C94,[1]本地专场面试成绩!$D$2:$F$474,3,0) -> 83.400 | F94: 80.730 | G94: 是
A95: 93 | B95: 20232011 | C95: 50231024 | D95: 70.500 | E95: =VLOOKUP(C95,[1]本地专场面试成绩!$D$2:$F$474,3,0) -> 84.400 | F95: 80.230 | G95: 是
A96: 94 | B96: 20232011 | C96: 50230186 | D96: 70.550 | E96: =VLOOKUP(C96,[1]本地专场面试成绩!$D$2:$F$474,3,0) -> 82.000 | F96: 78.565 | G96: 是
A97: 95 | B97: 20232012 | C97: 50230334 | D97: 88.000 | E97: =VLOOKUP(C97,[1]本地专场面试成绩!$D$2:$F$474,3,0) -> 85.440 | F97: =D97*0.6+E97*0.4 -> 86.976 | G97: 是
A98: 96 | B98: 20232012 | C98: 50231517 | D98: 87.200 | E98: =VLOOKUP(C98,[1]本地专场面试成绩!$D$2:$F$474,3,0) -> 85.600 | F98: 86.560 | G98: 是
A99: 97 | B99: 20232013 | C99: 50232238 | D99: 89.600 | E99: =VLOOKUP(C99,[1]本地专场面试成绩!$D$2:$F$474,3,0) -> 84.200 | F99: 87.440 | G99: 是
A100: 98 | B100: 20232013 | C100: 50231958 | D100: 89.400 | E100: =VLOOKUP(C100,[1]本地专场面试成绩!$D$2:$F$474,3,0) -> 81.800 | F100: 86.360 | G100: 是
A101: 99 | B101: 20232013 | C101: 50230033 | D101: 88.400 | E101: =VLOOKUP(C101,[1]本地专场面试成绩!$D$2:$F$474,3,0) -> 83.200 | F101: 86.320 | G101: 是
A102: 100 | B102: 20232013 | C102: 50231021 | D102: 86.600 | E102: =VLOOKUP(C102,[1]本地专场面试成绩!$D$2:$F$474,3,0) -> 85.800 | F102: 86.280 | G102: 是
A103: 101 | B103: 20232014 | C103: 50230204 | D103: 67.750 | E103: =VLOOKUP(C103,[1]本地专场面试成绩!$D$2:$F$474,3,0) -> 87.000 | F103: =D103*0.3+E103*0.7 -> 81.225 | G103: 是
A104: 102 | B104: 20232015 | C104: 50230164 | D104: 73.500 | E104: =VLOOKUP(C104,[1]本地专场面试成绩!$D$2:$F$474,3,0) -> 88.000 | F104: 83.650 | G104: 是
A105: 103 | B105: 20232015 | C105: 50230680 | D105: 72.650 | E105: =VLOOKUP(C105,[1]本地专场面试成绩!$D$2:$F$474,3,0) -> 85.000 | F105: 81.295 | G105: 是
A106: 104 | B106: 20232015 | C106: 50231671 | D106: 66.900 | E106: =VLOOKUP(C106,[1]本地专场面试成绩!$D$2:$F$474,3,0) -> 81.800 | F106: 77.330 | G106: 是
A107: 105 | B107: 20232015 | C107: 50230854 | D107: 65.550 | E107: =VLOOKUP(C107,[1]本地专场面试成绩!$D$2:$F$474,3,0) -> 80.400 | F107: 75.945 | G107: 是
A108: 106 | B108: 20232016 | C108: 50232993 | D108: 69.050 | E108: =VLOOKUP(C108,[1]本地专场面试成绩!$D$2:$F$474,3,0) -> 88.400 | F108: 82.595 | G108: 是
A109: 107 | B109: 20232016 | C109: 50230028 | D109: 72.000 | E109: =VLOOKUP(C109,[1]本地专场面试成绩!$D$2:$F$474,3,0) -> 85.800 | F109: 81.660 | G109: 是
A110: 108 | B110: 20232017 | C110: 50230466 | D110: 67.600 | E110: =VLOOKUP(C110,[1]本地专场面试成绩!$D$2:$F$474,3,0) -> 86.400 | F110: 80.760 | G110: 是
A111: 109 | B111: 20232017 | C111: 50230173 | D111: 67.650 | E111: =VLOOKUP(C111,[1]本地专场面试成绩!$D$2:$F$474,3,0) -> 82.800 | F111: 78.255 | G111: 是
A112: 110 | B112: 20232017 | C112: 50231605 | D112: 71.750 | E112: =VLOOKUP(C112,[1]本地专场面试成绩!$D$2:$F$474,3,0) -> 79.400 | F112: 77.105 | G112: 是
A113: 111 | B113: 20232017 | C113: 50231193 | D113: 67.700 | E113: =VLOOKUP(C113,[1]本地专场面试成绩!$D$2:$F$474,3,0) -> 78.800 | F113: 75.470 | G113: 是
A114: 112 | B114: 20232018 | C114: 50230460 | D114: 68.550 | E114: =VLOOKUP(C114,[1]本地专场面试成绩!$D$2:$F$474,3,0) -> 83.200 | F114: 78.805 | G114: 是
A115: 113 | B115: 20232020 | C115: 50232374 | D115: 76.100 | E115: =VLOOKUP(C115,[1]本地专场面试成绩!$D$2:$F$474,3,0) -> 87.200 | F115: 83.870 | G115: 是
A116: 114 | B116: 20232020 | C116: 50230267 | D116: 75.600 | E116: =VLOOKUP(C116,[1]本地专场面试成绩!$D$2:$F$474,3,0) -> 86.800 | F116: 83.440 | G116: 是
A117: 115 | B117: 20232020 | C117: 50231658 | D117: 71.550 | E117: =VLOOKUP(C117,[1]本地专场面试成绩!$D$2:$F$474,3,0) -> 88.400 | F117: 83.345 | G117: 是
A118: 116 | B118: 20232020 | C118: 50231172 | D118: 71.550 | E118: =VLOOKUP(C118,[1]本地专场面试成绩!$D$2:$F$474,3,0) -> 86.800 | F118: 82.225 | G118: 是
A119: 117 | B119: 20232020 | C119: 50231498 | D119: 68.150 | E119: =VLOOKUP(C119,[1]本地专场面试成绩!$D$2:$F$474,3,0) -> 88.200 | F119: 82.185 | G119: 是
A120: 118 | B120: 20232020 | C120: 50231885 | D120: 78.000 | E120: =VLOOKUP(C120,[1]本地专场面试成绩!$D$2:$F$474,3,0) -> 83.600 | F120: 81.920 | G120: 是
A121: 119 | B121: 20232020 | C121: 50231528 | D121: 69.800 | E121: =VLOOKUP(C121,[1]本地专场面试成绩!$D$2:$F$474,3,0) -> 87.000 | F121: 81.840 | G121: 是
A122: 120 | B122: 20232020 | C122: 50231491 | D122: 71.000 | E122: =VLOOKUP(C122,[1]本地专场面试成绩!$D$2:$F$474,3,0) -> 85.600 | F122: 81.220 | G122: 是
A123: 121 | B123: 20232020 | C123: 50230550 | D123: 74.850 | E123: =VLOOKUP(C123,[1]本地专场面试成绩!$D$2:$F$474,3,0) -> 83.400 | F123: 80.835 | G123: 是
A124: 122 | B124: 20232020 | C124: 50230979 | D124: 72.000 | E124: =VLOOKUP(C124,[1]本地专场面试成绩!$D$2:$F$474,3,0) -> 84.400 | F124: 80.680 | G124: 是
A125: 123 | B125: 20232020 | C125: 50232386 | D125: 72.450 | E125: =VLOOKUP(C125,[1]本地专场面试成绩!$D$2:$F$474,3,0) -> 84.200 | F125: 80.675 | G125: 是
A126: 124 | B126: 20232021 | C126: 50230008 | D126: 71.350 | E126: =VLOOKUP(C126,[1]本地专场面试成绩!$D$2:$F$474,3,0) -> 86.000 | F126: 81.605 | G126: 是
A127: 125 | B127: 20232021 | C127: 50231130 | D127: 70.800 | E127: =VLOOKUP(C127,[1]本地专场面试成绩!$D$2:$F$474,3,0) -> 86.200 | F127: 81.580 | G127: 是
A128: 126 | B128: 20232021 | C128: 50231672 | D128: 69.400 | E128: =VLOOKUP(C128,[1]本地专场面试成绩!$D$2:$F$474,3,0) -> 85.200 | F128: 80.460 | G128: 是
A129: 127 | B129: 20232021 | C129: 50230330 | D129: 70.550 | E129: =VLOOKUP(C129,[1]本地专场面试成绩!$D$2:$F$474,3,0) -> 84.400 | F129: 80.245 | G129: 是
A130: 128 | B130: 20232021 | C130: 50231239 | D130: 70.600 | E130: =VLOOKUP(C130,[1]本地专场面试成绩!$D$2:$F$474,3,0) -> 83.800 | F130: 79.840 | G130: 是
A131: 129 | B131: 20232021 | C131: 50231991 | D131: 77.350 | E131: =VLOOKUP(C131,[1]本地专场面试成绩!$D$2:$F$474,3,0) -> 80.800 | F131: 79.765 | G131: 是
A132: 130 | B132: 20232021 | C132: 50231076 | D132: 69.850 | E132: =VLOOKUP(C132,[1]本地专场面试成绩!$D$2:$F$474,3,0) -> 83.400 | F132: 79.335 | G132: 是
A133: 131 | B133: 20232021 | C133: 50231444 | D133: 71.950 | E133: =VLOOKUP(C133,[1]本地专场面试成绩!$D$2:$F$474,3,0) -> 82.200 | F133: 79.125 | G133: 是
A134: 132 | B134: 20232021 | C134: 50230534 | D134: 77.500 | E134: =VLOOKUP(C134,[1]本地专场面试成绩!$D$2:$F$474,3,0) -> 79.400 | F134: 78.830 | G134: 是
A135: 133 | B135: 20232021 | C135: 50230228 | D135: 70.000 | E135: =VLOOKUP(C135,[1]本地专场面试成绩!$D$2:$F$474,3,0) -> 82.400 | F135: 78.680 | G135: 是
A136: 134 | B136: 20232022 | C136: 50231306 | D136: 72.750 | E136: =VLOOKUP(C136,[1]本地专场面试成绩!$D$2:$F$474,3,0) -> 88.200 | F136: 83.565 | G136: 是
A137: 135 | B137: 20232022 | C137: 50230243 | D137: 75.400 | E137: =VLOOKUP(C137,[1]本地专场面试成绩!$D$2:$F$474,3,0) -> 83.800 | F137: 81.280 | G137: 是
A138: 136 | B138: 20232022 | C138: 50231267 | D138: 72.700 | E138: =VLOOKUP(C138,[1]本地专场面试成绩!$D$2:$F$474,3,0) -> 84.400 | F138: 80.890 | G138: 是
A139: 137 | B139: 20232022 | C139: 50231626 | D139: 74.550 | E139: =VLOOKUP(C139,[1]本地专场面试成绩!$D$2:$F$474,3,0) -> 82.800 | F139: 80.325 | G139: 是
A140: 138 | B140: 20232022 | C140: 50230637 | D140: 71.500 | E140: =VLOOKUP(C140,[1]本地专场面试成绩!$D$2:$F$474,3,0) -> 83.200 | F140: 79.690 | G140: 是
A141: 139 | B141: 20232022 | C141: 50232658 | D141: 72.800 | E141: =VLOOKUP(C141,[1]本地专场面试成绩!$D$2:$F$474,3,0) -> 82.400 | F141: 79.520 | G141: 是
A142: 140 | B142: 20232022 | C142: 50231514 | D142: 70.650 | E142: =VLOOKUP(C142,[1]本地专场面试成绩!$D$2:$F$474,3,0) -> 83.000 | F142: 79.295 | G142: 是
A143: 141 | B143: 20232022 | C143: 50230423 | D143: 69.650 | E143: =VLOOKUP(C143,[1]本地专场面试成绩!$D$2:$F$474,3,0) -> 83.400 | F143: 79.275 | G143: 是
A144: 142 | B144: 20232022 | C144: 50231941 | D144: 74.050 | E144: =VLOOKUP(C144,[1]本地专场面试成绩!$D$2:$F$474,3,0) -> 81.400 | F144: 79.195 | G144: 是
A145: 143 | B145: 20232023 | C145: 50230087 | D145: 84.400 | E145: =VLOOKUP(C145,[1]本地专场面试成绩!$D$2:$F$474,3,0) -> 87.000 | F145: =D145*0.6+E145*0.4 -> 85.440 | G145: 是
A146: 144 | B146: 20232023 | C146: 50230971 | D146: 85.200 | E146: =VLOOKUP(C146,[1]本地专场面试成绩!$D$2:$F$474,3,0) -> 85.400 | F146: 85.280 | G146: 是
A147: 145 | B147: 20232023 | C147: 50230608 | D147: 84.700 | E147: =VLOOKUP(C147,[1]本地专场面试成绩!$D$2:$F$474,3,0) -> 85.400 | F147: 84.980 | G147: 是
A148: 146 | B148: 20232023 | C148: 50230042 | D148: 84.900 | E148: =VLOOKUP(C148,[1]本地专场面试成绩!$D$2:$F$474,3,0) -> 84.400 | F148: 84.700 | G148: 是
A149: 147 | B149: 20232023 | C149: 50230762 | D149: 86.800 | E149: =VLOOKUP(C149,[1]本地专场面试成绩!$D$2:$F$474,3,0) -> 80.400 | F149: 84.240 | G149: 是
A150: 148 | B150: 20232024 | C150: 50232212 | D150: 88.400 | E150: =VLOOKUP(C150,[1]本地专场面试成绩!$D$2:$F$474,3,0) -> 85.920 | F150: 87.408 | G150: 是
A151: 149 | B151: 20232024 | C151: 50231847 | D151: 90.800 | E151: =VLOOKUP(C151,[1]本地专场面试成绩!$D$2:$F$474,3,0) -> 81.600 | F151: 87.120 | G151: 是
A152: 150 | B152: 20232024 | C152: 50231823 | D152: 89.400 | E152: =VLOOKUP(C152,[1]本地专场面试成绩!$D$2:$F$474,3,0) -> 82.400 | F152: 86.600 | G152: 是
A153: 151 | B153: 20232024 | C153: 50230225 | D153: 87.600 | E153: =VLOOKUP(C153,[1]本地专场面试成绩!$D$2:$F$474,3,0) -> 83.700 | F153: 86.040 | G153: 是
A154: 152 | B154: 20232024 | C154: 50230956 | D154: 85.600 | E154: =VLOOKUP(C154,[1]本地专场面试成绩!$D$2:$F$474,3,0) -> 85.900 | F154: 85.720 | G154: 是
A155: 153 | B155: 20232025 | C155: 50230088 | D155: 85.000 | E155: =VLOOKUP(C155,[1]本地专场面试成绩!$D$2:$F$474,3,0) -> 85.600 | F155: 85.240 | G155: 是
A156: 154 | B156: 20232025 | C156: 50230997 | D156: 85.600 | E156: =VLOOKUP(C156,[1]本地专场面试成绩!$D$2:$F$474,3,0) -> 80.000 | F156: 83.360 | G156: 是
A157: 155 | B157: 20232026 | C157: 50232653 | D157: 71.250 | E157: =VLOOKUP(C157,[1]本地专场面试成绩!$D$2:$F$474,3,0) -> 81.000 | F157: =D157*0.3+E157*0.7 -> 78.075 | G157: 是
A158: 156 | B158: 20232026 | C158: 50232120 | D158: 66.150 | E158: =VLOOKUP(C158,[1]本地专场面试成绩!$D$2:$F$474,3,0) -> 81.200 | F158: 76.685 | G158: 是
A159: 157 | B159: 20232027 | C159: 50230866 | D159: 90.000 | E159: =VLOOKUP(C159,[1]本地专场面试成绩!$D$2:$F$474,3,0) -> 85.800 | F159: =D159*0.6+E159*0.4 -> 88.320 | G159: 是
A160: 158 | B160: 20232028 | C160: 50231988 | D160: 72.350 | E160: =VLOOKUP(C160,[1]本地专场面试成绩!$D$2:$F$474,3,0) -> 80.000 | F160: 77.705 | G160: 是
A161: 159 | B161: 20232028 | C161: 50233000 | D161: 60.500 | E161: =VLOOKUP(C161,[1]本地专场面试成绩!$D$2:$F$474,3,0) -> 84.200 | F161: 77.090 | G161: 是
